bitfinex/quotes_SOLUSD_20250507
["timestamp","ask_amount","ask_price","bid_price","bid_amount"]
[1746583991880,14.09115172,147.95,147.92,26.24025508]
[1746583992071,14.09115172,147.96,147.92,26.24025508]
[1746583992477,14.09115172,147.97,147.92,26.24025508]
[1746583992771,14.09115172,147.98,147.92,43.14128266]
[1746583993166,163.58489688,148.02,147.92,43.14128266]
[1746583993377,14.09115172,147.99,147.92,43.14128266]
[1746583993564,137.58489688,148.01,147.93,18.64964886]
[1746583993976,22.53301116,147.99,147.93,18.64964886]
[1746583994390,22.53301116,147.98,147.92,43.14128266]
[1746583997180,144.34119772,148.01,147.92,43.14128266]
[1746583997501,22.53301116,147.98,147.92,43.14128266]
[1746583998097,22.53301116,147.99,147.92,43.14128266]
[1746583998602,137.58489688,148.01,147.93,18.64964886]
[1746583998787,22.53301116,148.0,147.93,18.64964886]
[1746583999299,137.58489688,148.01,147.94,23.65823982]
[1746583999506,160.11790804,148.01,147.94,23.65823982]
[1746583999698,160.11790804,148.01,147.94,42.85823982]
[1746583999699,137.58489688,148.01,147.94,42.85823982]
[1746583999876,160.11790804,148.01,147.94,42.85823982]
[1746584000601,137.58489688,148.01,147.95,18.64964886]
[1746584000903,160.11790804,148.05,147.97,0.14216157]
[1746584001202,22.53301116,148.03,147.98,19.48]
[1746584001404,22.53301116,148.04,147.98,19.48]
[1746584002505,22.53301116,148.03,147.98,19.48]
[1746584003094,137.58489688,148.05,147.99,6.75721332]
[1746584003291,22.53301116,148.03,147.99,6.75721332]
[1746584004213,22.53301116,148.04,147.99,23.65024663]
[1746584004423,137.58489688,148.05,147.99,23.65024663]
[1746584004597,160.11790804,148.05,147.99,23.65024663]
[1746584004916,22.53301116,148.04,147.99,23.65024663]
[1746584006610,22.53301116,148.02,147.99,6.75721332]
[1746584006991,22.53301116,148.01,147.98,26.23748696]
[1746584007202,6.4603,148.07,148.01,26.0]
[1746584007507,1.6648,148.08,148.02,6.7558438]
[1746584007717,22.53301116,148.09,148.02,6.7558438]
[1746584008197,6.1279,148.11,148.02,6.7558438]
[1746584008386,12.87973078,148.11,148.02,6.7558438]
[1746584008585,22.53301116,148.04,148.02,6.7558438]
[1746584008809,26.0,148.08,148.0,6.75675675]
[1746584009009,22.53301116,148.03,148.0,6.75675675]
[1746584009216,22.53301116,148.01,147.98,26.23721803]
[1746584009390,29.18631116,148.05,147.98,6.75721803]
[1746584009587,22.53301116,148.02,147.98,6.75721803]
[1746584009799,6.6533,148.05,147.98,6.75721803]
[1746584010111,22.53301116,148.04,147.98,6.75721803]
[1746584010414,6.6533,148.05,147.98,6.75721803]
[1746584010706,169.67549688,148.08,147.98,6.75721803]
[1746584010906,22.53301116,148.05,148.0,6.75675675]
[1746584011302,22.53301116,148.03,148.0,6.75675675]
[1746584011508,22.53301116,148.02,148.0,6.75675675]
[1746584011699,22.53301116,148.01,147.98,6.75766995]
[1746584012497,22.53301116,148.05,147.98,6.75766995]
[1746584012697,22.53301116,148.01,147.98,6.75766995]
[1746584013312,137.58489688,148.04,147.97,6.75812664]
[1746584013612,22.53301116,148.01,147.97,6.75812664]
[1746584015314,22.53301116,148.01,147.97,23.65344325]
[1746584015619,160.11790804,148.03,147.97,23.65344325]
[1746584015994,137.58489688,148.07,148.0,26.0]
[1746584016221,22.53301116,148.06,148.0,26.0]
[1746584016432,22.53301116,148.04,147.98,44.79181043]
[1746584016899,22.53301116,148.03,147.98,26.0]
[1746584017094,22.53301116,148.01,147.97,23.65344325]
[1746584017608,22.53301116,147.99,147.97,6.75812664]
[1746584018402,22.53301116,147.98,147.95,6.75904021]
[1746584018622,22.53301116,147.96,147.95,6.75904021]
[1746584018817,22.53301116,147.97,147.95,6.75904021]
[1746584019522,22.53301116,147.97,147.92,6.76041103]
[1746584020025,22.53301116,147.97,147.92,23.66143861]
[1746584022438,137.58489688,148.0,147.92,23.66143861]
[1746584022733,22.53301116,147.98,147.92,23.66143861]
[1746584023102,137.58489688,148.0,147.93,18.79181043]
[1746584023302,160.11790804,148.0,147.93,18.79181043]
[1746584023502,137.58489688,148.0,147.93,18.79181043]
[1746584023727,137.58489688,148.0,147.94,1.6138]
[1746584024725,137.58489688,148.0,147.95,23.65664075]
[1746584024931,137.58489688,148.04,147.96,18.79181043]
[1746584025142,137.58489688,148.07,147.99,26.0]
[1746584025345,28.70931116,148.08,148.0,18.79181043]
[1746584025513,22.53301116,148.07,148.0,18.79181043]
[1746584026025,6.1763,148.08,148.0,18.79181043]
[1746584026208,22.53301116,148.07,148.0,18.79181043]
[1746584026630,6.1763,148.08,148.01,6.75630024]
[1746584026931,22.53301116,148.07,148.01,6.75630024]
[1746584027817,22.53301116,148.07,148.01,23.64705086]
[1746584028021,28.70931116,148.08,148.01,23.64705086]
[1746584029346,22.53301116,148.07,148.01,23.64705086]
[1746584029719,22.53301116,148.06,148.01,23.64705086]
[1746584029931,137.58489688,148.12,148.04,6.75493109]
[1746584030235,160.11790804,148.11,148.04,23.64225883]
[1746584033438,137.58489688,148.11,148.04,23.64225883]
[1746584033928,137.58489688,148.11,148.05,18.79181043]
[1746584034231,137.58489688,148.11,148.05,41.85181043]
[1746584034614,160.11790804,148.11,148.05,41.85181043]
[1746584034811,137.58489688,148.11,148.05,41.85181043]
[1746584035925,137.58489688,148.11,148.06,23.63906524]
[1746584036644,160.11790804,148.11,148.06,6.75401864]
[1746584037020,22.53301116,148.1,148.06,6.75401864]
[1746584037220,22.53301116,148.09,148.06,6.75401864]
[1746584037740,137.58489688,148.11,148.06,6.75401864]
[1746584038321,22.53301116,148.09,148.06,6.75401864]
[1746584038937,160.11790804,148.11,148.06,6.75401864]
[1746584039321,22.53301116,148.1,148.06,6.75401864]
[1746584040141,22.53301116,148.1,148.04,6.75493109]
[1746584040345,137.58489688,148.11,148.04,6.75493109]
[1746584040545,22.53301116,148.1,148.04,6.75493109]
[1746584041043,137.58489688,148.11,148.04,6.75493109]
[1746584041350,22.53301116,148.1,148.04,6.75493109]
[1746584042046,22.53301116,148.1,148.04,23.64225883]
[1746584042244,137.58489688,148.11,148.05,18.79181043]
[1746584042546,160.11790804,148.11,148.05,18.79181043]
[1746584043335,137.58489688,148.11,148.06,6.75401864]
[1746584043541,160.11790804,148.11,148.06,6.75401864]
[1746584043933,137.58489688,148.11,148.06,6.75401864]
[1746584044246,137.58489688,148.11,148.06,23.63906524]
[1746584044431,160.11790804,148.11,148.06,6.75401864]
[1746584044748,22.53301116,148.1,148.06,6.75401864]
[1746584045643,22.53301116,148.1,148.04,42.43406926]
[1746584045849,137.58489688,148.11,148.04,42.43406926]
[1746584046056,160.11790804,148.11,148.04,42.43406926]
[1746584046634,22.53301116,148.1,148.04,23.64225883]
[1746584046840,22.53301116,148.07,148.04,6.75493109]
[1746584047039,22.53301116,148.08,148.04,6.75493109]
[1746584047533,22.53301116,148.09,148.04,6.75493109]
[1746584047932,22.53301116,148.09,148.03,6.75538742]
[1746584048327,144.33675304,148.11,148.03,6.75538742]
[1746584048534,22.53301116,148.08,148.03,6.75538742]
[1746584049158,22.53301116,148.09,148.03,23.64385597]
[1746584049451,137.58489688,148.11,148.04,18.79181043]
[1746584049870,22.53301116,148.1,148.04,18.79181043]
[1746584050357,22.53301116,148.09,148.04,18.79181043]
[1746584050655,22.53301116,148.1,148.04,18.79181043]
[1746584051456,137.58489688,148.11,148.05,6.75447483]
[1746584051755,22.53301116,148.1,148.05,6.75447483]
[1746584053767,137.58489688,148.11,148.05,6.75447483]
[1746584053949,22.53301116,148.1,148.04,23.64225883]
[1746584054266,137.58489688,148.11,148.05,18.79181043]
[1746584055963,137.58489688,148.11,148.06,23.63906524]
[1746584056147,48.53301116,148.13,148.06,23.63906524]
[1746584057047,26.0,148.13,148.06,23.63906524]
[1746584057448,48.53301116,148.13,148.06,23.63906524]
[1746584057642,26.0,148.13,148.07,18.79181043]
[1746584057847,48.53301116,148.13,148.07,18.79181043]
[1746584058345,22.53301116,148.12,148.06,23.63906524]
[1746584058750,22.53301116,148.11,148.06,23.63906524]
[1746584061340,26.0,148.13,148.07,18.79181043]
[1746584061750,48.53301116,148.13,148.07,18.79181043]
[1746584061938,137.58489688,148.14,148.07,18.79181043]
[1746584062157,22.53301116,148.15,148.07,18.79181043]
[1746584063065,22.53301116,148.16,148.07,18.79181043]
[1746584063464,22.53301116,148.15,148.08,23.63587249]
[1746584064187,38.92480835,148.17,148.08,25.23817249]
[1746584064478,22.53301116,148.15,148.08,25.23817249]
[1746584067544,137.58489688,148.16,148.09,18.79181043]
[1746584067744,151.63761376,148.16,148.09,40.39181043]
[1746584068984,137.58489688,148.16,148.09,40.39181043]
[1746584069152,14.05271688,148.18,148.09,40.39181043]
[1746584069352,14.05271688,148.17,148.09,40.39181043]
[1746584069654,14.05271688,148.16,148.11,18.79181043]
[1746584069852,14.05271688,148.16,148.1,23.63268061]
[1746584070078,14.05271688,148.14,148.1,6.75219446]
[1746584070278,14.05271688,148.13,148.1,6.75219446]
[1746584070453,14.05271688,148.14,148.1,6.75219446]
[1746584070967,14.05271688,148.13,148.09,28.35245413]
[1746584072152,174.31080898,148.16,148.09,28.35245413]
[1746584072357,137.58489688,148.15,148.09,28.35245413]
[1746584072661,14.05271688,148.14,148.09,28.35245413]
[1746584072855,14.05271688,148.13,148.09,28.35245413]
[1746584073170,14.05271688,148.14,148.09,28.35245413]
[1746584073581,14.05271688,148.13,148.09,28.35245413]
[1746584073955,14.05271688,148.14,148.09,28.35245413]
[1746584074276,137.58489688,148.15,148.09,28.35245413]
[1746584074868,137.58489688,148.15,148.09,45.23408016]
[1746584075077,44.02871688,148.16,148.09,45.23408016]
[1746584075078,29.976,148.16,148.1,18.79181043]
[1746584075547,29.976,148.16,148.12,18.79181043]
[1746584077753,29.976,148.16,148.13,23.62789441]
[1746584079257,29.976,148.16,148.14,18.79181043]
[1746584079778,29.976,148.16,148.15,25.54172605]
[1746584080187,29.976,148.16,148.15,47.12172605]
[1746584081283,29.976,148.16,148.15,73.12172605]
[1746584083681,29.976,148.16,148.15,47.12172605]
[1746584083990,29.976,148.16,148.15,28.32991562]
[1746584086061,29.976,148.16,148.15,47.12172605]
[1746584086477,29.976,148.16,148.15,6.74991562]
[1746584089193,29.976,148.16,148.14,28.3302002]
[1746584089493,29.85845082,148.16,148.14,28.3302002]
[1746584092069,29.85845082,148.16,148.14,21.58]
[1746584092269,29.85845082,148.16,148.14,28.33022737]
[1746584093196,29.85845082,148.16,148.14,6.75022737]
[1746584093384,52.31852597,148.16,148.12,6.75128274]
[1746584093590,22.46007515,148.15,148.12,6.75128274]
[1746584093789,29.85845082,148.16,148.12,6.75128274]
[1746584094096,22.46007515,148.14,148.11,27.55155048]
[1746584094874,22.46007515,148.13,148.11,27.55155048]
[1746584095392,22.46007515,148.15,148.11,27.55155048]
[1746584095863,29.85845082,148.16,148.11,27.55155048]
[1746584096067,22.46007515,148.15,148.11,27.55155048]
[1746584096492,22.46007515,148.14,148.11,27.55155048]
[1746584097594,22.46007515,148.13,148.1,6.75202753]
[1746584097792,22.46007515,148.12,148.1,6.75202753]
[1746584098007,22.46007515,148.11,148.07,6.7535625]
[1746584098486,22.46007515,148.14,148.07,23.63746876]
[1746584098675,30.27637515,148.15,148.07,23.63746876]
[1746584099185,22.46007515,148.14,148.07,23.63746876]
[1746584100291,7.8163,148.15,148.07,23.63746876]
[1746584100292,22.46007515,148.13,148.07,23.63746876]
[1746584100497,7.8163,148.15,148.07,6.7535625]
[1746584100498,22.46007515,148.1,148.07,6.7535625]
[1746584100790,22.46007515,148.11,148.07,6.7535625]
[1746584100991,160.04497203,148.12,148.07,23.63746876]
[1746584101195,33.8163,148.15,148.07,23.63746876]
[1746584101404,22.46007515,148.14,148.07,23.63746876]
[1746584101696,40.56629384,148.15,148.07,23.63746876]
[1746584101877,14.05970186,148.12,148.07,23.63746876]
[1746584102276,14.05970186,148.13,148.07,23.63746876]
[1746584102493,14.05970186,148.14,148.07,23.63746876]
[1746584103079,14.05970186,148.12,148.07,23.63746876]
[1746584103286,14.05970186,148.11,148.07,23.63746876]
[1746584103805,14.05970186,148.1,148.07,6.7535625]
[1746584104502,14.05970186,148.09,148.07,6.7535625]
[1746584104810,137.58489688,148.12,148.07,6.7535625]
[1746584105109,151.64459874,148.11,148.07,6.7535625]
[1746584105289,137.58489688,148.11,148.07,23.63746876]
[1746584106402,160.07563937,148.11,148.07,23.63746876]
[1746584106780,137.58489688,148.11,148.07,23.63746876]
[1746584108799,22.49074249,148.14,148.07,23.63746876]
[1746584110809,22.49074249,148.13,148.07,23.63746876]
[1746584111021,22.49074249,148.12,148.07,23.63746876]
[1746584111604,22.49074249,148.13,148.07,23.63746876]
[1746584111807,22.49074249,148.12,148.07,23.63746876]
[1746584112002,22.49074249,148.11,148.07,6.7535625]
[1746584112208,137.58489688,148.14,148.07,6.7535625]
[1746584112391,22.49074249,148.1,148.07,6.7535625]
[1746584112916,137.58489688,148.13,148.07,6.7535625]
[1746584113123,22.49074249,148.12,148.07,6.7535625]
[1746584113305,22.49074249,148.12,148.07,23.63746876]
[1746584113505,137.58489688,148.13,148.07,23.63746876]
[1746584113725,22.49074249,148.12,148.07,23.63746876]
[1746584116620,22.49074249,148.11,148.07,23.63746876]
[1746584116994,22.49074249,148.12,148.07,23.63746876]
[1746584117814,22.49074249,148.11,148.07,6.7535625]
[1746584119803,137.58489688,148.13,148.07,6.7535625]
[1746584120117,137.58489688,148.13,148.08,18.79181043]
[1746584120418,29.85845082,148.16,148.09,45.8]
[1746584120717,29.85845082,148.16,148.1,18.79181043]
[1746584121514,29.85845082,148.16,148.12,18.79181043]
[1746584121717,29.85845082,148.16,148.13,20.02]
[1746584123722,29.85845082,148.16,148.14,6.75037127]
[1746584133614,43.90671987,148.16,148.14,6.75037127]
[1746584133933,43.90671987,148.16,148.13,20.02]
[1746584133934,14.04826905,148.15,148.09,16.88057909]
[1746584134131,14.04826905,148.12,148.09,16.88057909]
[1746584134333,14.04826905,148.12,148.09,6.75265041]
[1746584134512,14.04826905,148.14,148.09,23.63427644]
[1746584134717,137.58489688,148.15,148.09,23.63427644]
[1746584135232,29.85845082,148.16,148.1,18.79181043]
[1746584135935,43.90671987,148.16,148.11,6.75173857]
[1746584136234,14.04826905,148.12,148.11,6.75173857]
[1746584136431,14.04826905,148.13,148.11,6.75173857]
[1746584136616,137.58489688,148.15,148.11,23.631085]
[1746584137217,29.85845082,148.16,148.11,23.631085]
[1746584137416,43.90671987,148.16,148.11,23.631085]
[1746584138336,14.04826905,148.15,148.11,16.87934643]
[1746584138542,29.85845082,148.16,148.1,6.75219446]
[1746584138745,14.04826905,148.13,148.1,6.75219446]
[1746584139734,200.19293073,148.16,148.09,6.75265041]
[1746584139942,14.04826905,148.14,148.09,6.75265041]
[1746584140241,14.04826905,148.13,148.09,6.75265041]
[1746584141547,14.04826905,148.11,148.09,6.75265041]
[1746584141851,14.04826905,148.11,148.08,26.77290897]
[1746584142032,14.04826905,148.1,148.08,20.02]
[1746584142426,14.06364698,148.1,148.08,26.77305542]
[1746584142622,14.06364698,148.1,148.08,20.02]
[1746584142844,14.06364698,148.09,148.04,253.02]
[1746584143032,14.06364698,148.08,148.04,6.75493109]
[1746584143340,14.06364698,148.07,148.04,6.75493109]
[1746584143835,14.06364698,148.08,148.04,6.75493109]
[1746584144750,40.06364698,148.08,148.04,20.81857807]
[1746584145217,40.06364698,148.08,148.04,6.75493109]
[1746584145641,14.06364698,148.07,148.04,6.75493109]
[1746584145950,14.06364698,148.06,148.04,6.75493109]
[1746584146742,14.06364698,148.07,148.04,6.75493109]
[1746584146931,14.06364698,148.06,148.04,6.75493109]
[1746584147750,163.58489688,148.08,148.04,6.75493109]
[1746584147941,14.06364698,148.06,148.04,6.75493109]
[1746584148622,163.58489688,148.08,148.03,19.26]
[1746584148623,14.06364698,148.05,148.03,19.26]
[1746584148836,14.06364698,148.04,148.03,19.26]
[1746584149044,14.06364698,148.05,148.03,26.01538742]
[1746584149851,14.06364698,148.04,148.03,19.26]
[1746584151142,14.06364698,148.04,148.03,26.01538742]
[1746584151339,14.06364698,148.04,148.01,6.75630024]
[1746584151547,14.06364698,148.03,148.01,6.75630024]
[1746584151926,14.06364698,148.03,148.0,6.75675675]
[1746584152133,14.06364698,148.04,148.0,37.71229562]
[1746584152352,26.0,148.05,148.0,37.71229562]
[1746584152529,137.58489688,148.06,148.02,14.06364698]
[1746584153428,151.64854386,148.06,148.01,14.06364698]
[1746584154142,151.64854386,148.06,148.02,6.7558438]
[1746584154535,14.06364698,148.05,148.02,6.7558438]
[1746584154845,14.06364698,148.04,148.02,6.7558438]
[1746584155444,14.06364698,148.03,148.02,6.7558438]
[1746584155922,137.58489688,148.06,148.02,6.7558438]
[1746584156128,137.58489688,148.06,148.0,6.75675675]
[1746584156341,14.06364698,148.04,148.0,6.75675675]
[1746584157046,14.06364698,148.03,148.0,6.75675675]
[1746584157745,14.06364698,148.02,148.0,6.75675675]
[1746584158348,144.33895465,148.06,147.99,6.75721332]
[1746584158349,14.06364698,148.03,147.99,6.75721332]
[1746584158941,14.06364698,148.02,147.99,6.75721332]
[1746584159447,14.06364698,148.02,147.99,23.65024663]
[1746584159673,14.06364698,148.01,147.99,23.65024663]
[1746584159952,14.06364698,148.02,147.99,23.65024663]
[1746584160149,14.06364698,148.0,147.98,26.03749058]
[1746584160454,14.06364698,147.99,147.98,26.03749058]
[1746584161044,151.64854386,148.01,147.98,6.75749058]
[1746584161846,14.06364698,148.0,147.98,6.75749058]
[1746584162463,137.58489688,148.01,147.96,23.65391837]
[1746584162636,151.64854386,148.01,147.96,37.71756535]
[1746584162954,14.06364698,148.0,147.96,37.71756535]
[1746584163158,14.06364698,148.0,147.96,23.65391837]
[1746584164475,14.06364698,148.0,147.96,37.71756535]
[1746584164764,14.06364698,148.0,147.96,30.95898195]
[1746584166658,151.64854386,148.01,147.97,14.06364698]
[1746584166863,137.58489688,148.04,148.0,14.06364698]
[1746584167364,151.64854386,148.04,147.99,14.06364698]
[1746584167556,14.06364698,148.02,147.98,14.06364698]
[1746584168075,14.06364698,148.03,147.98,14.06364698]
[1746584168541,14.06364698,148.02,147.98,14.06364698]
[1746584168745,14.06364698,148.02,147.99,6.75721332]
[1746584170260,14.06364698,148.0,147.99,6.75721332]
[1746584170765,14.06364698,148.0,147.97,23.65234092]
[1746584171164,14.06364698,147.99,147.97,6.75812664]
[1746584171376,14.06364698,147.98,147.94,6.75949709]
[1746584171560,14.06364698,147.96,147.94,6.75949709]
[1746584172059,14.06364698,147.97,147.94,6.75949709]
[1746584172563,14.06364698,147.97,147.92,37.72401123]
[1746584173562,14.06364698,147.96,147.92,37.72401123]
[1746584173765,14.06364698,147.97,147.92,37.72401123]
[1746584175266,14.06364698,147.96,147.92,37.72401123]
[1746584175567,137.58489688,147.98,147.92,37.72401123]
[1746584175865,14.06364698,147.96,147.92,37.72401123]
[1746584176067,14.06364698,147.97,147.92,37.72401123]
[1746584176365,14.06364698,147.95,147.92,23.66036425]
[1746584177171,14.06364698,147.96,147.92,23.66036425]
[1746584177566,14.06364698,147.96,147.92,37.72401123]
[1746584178806,14.06364698,147.95,147.92,6.76041103]
[1746584179479,14.06364698,147.96,147.92,6.76041103]
[1746584179869,40.06364698,147.96,147.92,6.76041103]
[1746584180076,14.06364698,147.95,147.92,6.76041103]
[1746584180890,40.06364698,147.96,147.92,6.76041103]
[1746584181377,14.06364698,147.94,147.92,6.76041103]
[1746584182489,14.06364698,147.93,147.91,18.76]
[1746584182994,14.06364698,147.92,147.91,18.76]
[1746584183201,14.06364698,147.92,147.9,6.76121902]
[1746584183495,14.06364698,147.91,147.87,6.76269696]
[1746584183703,14.06364698,147.89,147.87,6.76269696]
[1746584184075,14.06364698,147.88,147.86,25.52298528]
[1746584184269,14.06364698,147.89,147.86,25.52298528]
[1746584185179,137.58489688,147.91,147.86,25.52298528]
[1746584185379,14.06364698,147.89,147.86,25.52298528]
[1746584186291,14.06364698,147.88,147.86,25.52298528]
[1746584186795,137.58489688,147.91,147.86,25.52298528]
[1746584186970,151.64854386,147.91,147.87,14.06364698]
[1746584187989,151.64854386,147.91,147.86,42.43087111]
[1746584187990,139.23679688,147.94,147.89,14.06364698]
[1746584188166,14.06364698,147.93,147.89,14.06364698]
[1746584188365,177.64854386,147.94,147.89,14.06364698]
[1746584188594,177.64854386,147.94,147.87,1.5583]
[1746584188904,177.64854386,147.94,147.89,14.06364698]
[1746584189199,137.58489688,147.94,147.91,14.06364698]
[1746584189883,137.58489688,147.94,147.92,14.06364698]
[1746584190386,137.58489688,147.94,147.91,14.06364698]
[1746584191192,137.58489688,147.94,147.9,14.06364698]
[1746584191380,151.64854386,147.94,147.9,14.06364698]
[1746584191693,137.58489688,147.94,147.88,57.47899851]
[1746584191893,137.58489688,147.94,147.9,14.06364698]
[1746584192296,137.58489688,147.94,147.88,57.47899851]
[1746584192589,137.58489688,147.94,147.91,14.06364698]
[1746584192766,40.06364698,147.96,147.91,14.06364698]
[1746584193166,14.06364698,147.95,147.92,6.76041103]
[1746584194094,40.06364698,147.96,147.92,6.76041103]
[1746584194492,137.58489688,147.97,147.92,23.66143861]
[1746584194694,151.64854386,147.97,147.92,37.72508559]
[1746584195379,14.06364698,147.96,147.92,37.72508559]
[1746584195894,151.64854386,147.97,147.92,37.72508559]
[1746584196196,137.58489688,147.97,147.93,14.06364698]
[1746584197404,151.64854386,147.97,147.94,6.75949709]
[1746584197590,137.58489688,147.97,147.94,6.75949709]
[1746584197897,151.64854386,147.97,147.94,6.75949709]
[1746584198398,137.58489688,147.97,147.94,6.75949709]
[1746584199403,151.64854386,147.97,147.9,23.66463825]
[1746584199605,151.64854386,147.97,147.92,14.06364698]
[1746584201604,151.64854386,147.97,147.93,6.75995403]
[1746584202400,26.0,147.98,147.93,37.72348609]
[1746584202702,26.0,147.98,147.95,14.06364698]
[1746584203089,26.0,147.98,147.93,25.27453911]
[1746584203403,177.64854386,148.0,147.95,14.06364698]
[1746584203807,177.64854386,148.0,147.96,6.7585834]
[1746584204011,163.58489688,148.0,147.96,6.7585834]
[1746584204187,177.64854386,148.0,147.96,6.7585834]
[1746584205198,163.58489688,148.0,147.97,14.06364698]
[1746584206009,163.58489688,148.0,147.96,37.71868888]
[1746584206207,163.58489688,148.0,147.96,23.6550419]
[1746584206383,163.58489688,148.0,147.96,37.71868888]
[1746584206907,163.58489688,148.0,147.97,14.06364698]
[1746584207105,163.58489688,148.0,147.99,6.75721332]
[1746584207303,26.0,148.0,147.99,6.75721332]
[1746584207483,151.64854386,148.03,147.99,6.75721332]
[1746584207688,177.64854386,148.03,147.99,6.75721332]
[1746584208104,6.1667,148.13,148.0,46.2856]
[1746584208289,14.06364698,148.1,148.05,14.06364698]
[1746584208484,14.06364698,148.09,148.04,14.06364698]
[1746584209002,26.0,148.1,148.04,14.06364698]
[1746584209212,14.06364698,148.09,148.05,6.75447483]
[1746584209683,22.5073867,148.09,148.05,6.75447483]
[1746584210406,48.5073867,148.1,148.05,29.26186153]
[1746584210614,26.0,148.1,148.06,22.5073867]
[1746584210904,22.5073867,148.12,148.07,22.5073867]
[1746584211088,22.5073867,148.11,148.07,22.5073867]
[1746584211513,26.0,148.12,148.08,6.75310642]
[1746584211693,22.5073867,148.12,148.08,29.26049312]
[1746584212008,48.5073867,148.12,148.08,6.75310642]
[1746584212909,26.0,148.12,148.08,29.26049312]
[1746584213612,48.5073867,148.12,148.08,29.26049312]
[1746584214833,48.5073867,148.12,148.07,16.88375781]
[1746584215124,48.5073867,148.12,148.08,22.5073867]
[1746584216016,48.5073867,148.12,148.09,6.75265041]
[1746584217112,26.0,148.12,148.09,6.75265041]
[1746584217490,26.0,148.12,148.09,29.26003711]
[1746584217693,26.0,148.12,148.09,6.75265041]
[1746584217910,26.0,148.12,148.09,29.26003711]
[1746584218211,26.0,148.12,148.1,22.5073867]
[1746584218415,137.58489688,148.13,148.11,22.5073867]
[1746584218714,29.85845082,148.16,148.12,22.5073867]
[1746584220031,29.85845082,148.16,148.14,29.25775797]
[1746584220499,29.85845082,148.16,148.13,6.75064349]
[1746584220699,52.36583752,148.16,148.12,6.75111092]
[1746584220999,22.5073867,148.15,148.12,6.75111092]
[1746584221622,29.85845082,148.16,148.12,29.25849762]
[1746584222229,29.85845082,148.16,148.14,22.5073867]
[1746584222622,52.36583752,148.16,148.12,29.25849762]
[1746584222809,22.5073867,148.15,148.11,25.49162321]
[1746584223011,22.5073867,148.14,148.11,18.74]
[1746584223402,22.5073867,148.13,148.11,18.74]
[1746584223622,160.09228358,148.12,148.03,6.75538742]
[1746584223926,26.0,148.14,148.05,29.26163977]
[1746584223927,22.5073867,148.09,148.05,29.26163977]
[1746584224530,22.5073867,148.1,148.05,29.26163977]
[1746584224743,22.5073867,148.1,148.06,22.5073867]
[1746584226155,137.58489688,148.11,148.07,6.7535625]
[1746584226318,137.58489688,148.11,148.08,22.5073867]
[1746584226844,137.58489688,148.11,148.07,6.7535625]
[1746584227025,160.09228358,148.11,148.07,29.2609492]
[1746584230142,160.09228358,148.11,148.05,23.64026304]
[1746584230528,22.5073867,148.1,148.06,22.5073867]
[1746584231047,22.5073867,148.1,148.05,46.14764974]
[1746584231253,22.5073867,148.09,148.05,6.75447483]
[1746584231428,137.58489688,148.11,148.05,6.75447483]
[1746584231637,137.58489688,148.11,148.05,29.26186153]
[1746584231929,22.5073867,148.1,148.05,29.26186153]
[1746584235254,137.58489688,148.11,148.09,22.5073867]
[1746584235845,137.58489688,148.11,148.1,6.75219446]
[1746584239848,186.09228358,148.14,148.1,6.75219446]
[1746584240028,186.09228358,148.14,148.07,16.88369958]
[1746584240228,22.5073867,148.13,148.09,22.5073867]
[1746584243048,186.09228358,148.14,148.1,6.75219446]
[1746584243431,186.09228358,148.14,148.1,29.25958116]
[1746584243631,163.58489688,148.14,148.11,22.5073867]
[1746584243945,137.58489688,148.14,148.13,14.05270667]
[1746584244244,55.85845082,148.16,148.13,14.05270667]
[1746584245749,55.85845082,148.16,148.14,6.75037127]
[1746584246839,29.85845082,148.16,148.14,6.75037127]
[1746584247045,29.85845082,148.16,148.14,29.23086236]
[1746584248857,29.85845082,148.16,148.14,6.75037127]
[1746584249448,52.33894191,148.16,148.13,6.75063433]
[1746584250548,29.85845082,148.16,148.13,6.75063433]
[1746584252235,29.85845082,148.16,148.15,22.48049109]
[1746584252653,29.85845082,148.16,148.14,22.48049109]
[1746584252853,29.85845082,148.16,148.15,22.48049109]
[1746584254160,29.85845082,148.16,148.15,29.23040671]
[1746584254345,29.85845082,148.16,148.15,6.74991562]
[1746584255458,29.85845082,148.16,148.11,6.75173857]
[1746584255671,29.85845082,148.16,148.13,22.48049109]
[1746584256334,29.85845082,148.16,148.14,6.75037127]
[1746584259462,29.85845082,148.16,148.14,22.48049109]
[1746584262167,29.85845082,148.16,148.15,29.23040671]
[1746584266072,29.85845082,148.16,148.15,6.74991562]
[1746584267566,29.85845082,148.16,148.15,29.23040671]
[1746584267763,29.85845082,148.16,148.15,20.09027734]
[1746584280088,29.85845082,148.16,148.15,6.04501562]
[1746584280559,29.85845082,148.16,148.15,20.09027734]
[1746584280751,29.85845082,148.16,148.15,6.04501562]
[1746584280948,29.85845082,148.16,148.15,20.09027734]
[1746584282272,29.85845082,148.16,148.15,38.7399262]
[1746584286275,29.85845082,148.16,148.15,6.04501562]
[1746584286689,43.90371254,148.16,148.14,25.3902375]
[1746584287058,29.85845082,148.16,148.14,25.3902375]
[1746584287257,43.90371254,148.16,148.14,25.3902375]
[1746584287488,43.90371254,148.16,148.14,18.64]